[Event "24th Hoogeschool Zeeland 2022"]
[Site "Vlissingen"]
[Date "2022.08.10"]
[Round "6.12"]
[White "Van Delft, Merijn"]
[Black "Marzano, Carlo"]
[Result "1-0"]
[ECO "C88"]
[WhiteElo "2383"]
[BlackElo "2079"]
[Annotator "TA"]
[PlyCount "83"]
[EventDate "2022.08.05"]
[EventType "swiss"]
[EventCountry "NED"]
[SourceTitle "playchess.com"]
[Source "ChessBase"]
[SourceQuality "1"]
[TimeControl "40/5400+30:1800+30"]

{[%evp 19,83,17,31,36,39,27,27,22,49,25,21,18,22,4,48,4,17,15,6,8,7,-94,-75,-69,-82,-72,-70,-177,-159,-158,-148,-220,-225,-229,-233,-264,-187,-183,-188,-228,-119,-102,-110,-175,-139,-171,-183,-223,-214,-177,0,0,88,0,0,0,12837,12838,12839,12839,12840,12839,12845,12845,12845,12843]} 1. e4 {[%emt 0:00:58]} e5 {[%emt 0:00:08]} 2. Nf3 {[%emt 0:00:33]} Nc6 {[%emt 0:00:05]} 3. Bb5 {[%emt 0:00:07]} a6 {[%emt 0:00:07]} 4. Ba4 {[%emt 0:00:06]} Nf6 {[%emt 0:00:07]} 5. O-O {[%emt 0:00:20]} b5 {[%emt 0:00:05]} 6. Bb3 {[%emt 0:00:06]} Bb7 {[%emt 0:00:04]} 7. d3 {[%emt 0:00:21]} Be7 {[%emt 0:00:21]} 8. a4 {[%emt 0:01:17]} O-O {[%emt 0:03:59]} 9. Re1 {[%emt 0:00:21]} d6 {[%emt 0:02:08]} 10. Nbd2 {[%emt 0:00:56]} Re8 {[%emt 0:05:31] 10...Nd7 is becoming the main line.} 11. Nf1 {[%emt 0:02:28] C88: Closed Ruy Lopez: Anti-Marshall Systems.} h6 {[%emt 0:00:36]} 12. Ng3 {[%emt 0:01:06]} Bf8 {[%emt 0:00:34]} 13. Bd2 {[%emt 0:01:35] [#] White has an edge.} Rb8 $146 {[%emt 0:09:08]} ({Predecessor:} 13... Qd7 14. Ba2 Rad8 15. Nh4 d5 16. exd5 Nxd5 17. Ne4 Nf4 18. axb5 axb5 19. Nf3 Nb4 {0-1 (51) Grigoriants,S (2582)-Tomashevsky,E (2595) Moscow 2006}) 14. axb5 {[%emt 0:08:47]} axb5 {[%emt 0:00:05]} 15. c3 {[%emt 0:03:24]} Ne7 {[%emt 0:14:43]} 16. Nh4 {[%emt 0:06:37] Black should prevent Qf3.} Qd7 {[%emt 0:03:06]} 17. h3 {[%emt 0:01:39]} (17. Qf3 {with more complications.} Qg4 18. Qxg4 Nxg4 19. Nh5) 17... d5 {[%emt 0:04:00]} 18. Qf3 {[%emt 0:18:07][%cal Od2h6]} c5 {[%emt 0:20:56] [#]} 19. Bxh6 $1 {[%emt 0:03:26] Hoping for Bg5.} c4 {[%emt 0:00:13][%mdl 64] [#] Deflection} 20. dxc4 {[%emt 0:04:14]} dxe4 $17 {[%emt 0:00:34]} 21. Qe2 {[%emt 0:01:24] And now Bg5 would win.} gxh6 {[%emt 0:02:21]} 22. cxb5 {[%emt 0:00:23]} Ned5 {[%emt 0:06:26]} 23. Nxe4 {[%emt 0:15:46]} (23. Bxd5 $15 Qxd5 24. Red1) 23... Nxe4 $19 {[%emt 0:00:13]} 24. Qxe4 {[%emt 0:00:11]} Nf4 {[%emt 0:00:38]} 25. Qf5 {[%emt 0:00:20]} (25. Qe3 $17 {was called for.}) 25... Qxf5 {[%emt 0:01:28]} 26. Nxf5 {[%emt 0:00:08]} Bxg2 {[%emt 0:05:42]} 27. Ra7 {[%emt 0:00:47]} Rb7 {[%emt 0:00:11]} 28. Rxb7 {[%emt 0:04:03]} Bxb7 {[%emt 0:00:02]} 29. Kh2 {[%emt 0:00:13]} Bd5 {[%emt 0:08:39]} ({And not} 29... Bc5 30. Rg1+ Kf8 31. Rg7 $17) (29... Rd8 $19 {White must now prevent ...Rd2.} 30. Rd1 Rxd1 31. Bxd1 Nd3) 30. Bxd5 $17 {[%emt 0:01:28]} Nxd5 {[%emt 0:00:02]} 31. c4 {[%emt 0:01:58]} (31. Ra1 $17) 31... Nf4 $19 {[%emt 0:00:23]} 32. Rd1 {[%emt 0:02:51]} Kh7 {[%emt 0:02:33]} 33. Rd7 {[%emt 0:00:22]} Kg6 {[%emt 0:00:19]} 34. Nd6 {[%emt 0:00:39] [#]} Bxd6 {[%emt 0:03:29]} ({Black should play} 34... Re6 $1 $19 {[%cal Re6d6]} 35. Nxf7 e4) 35. Rxd6+ {[%emt 0:00:10][%mdl 4096] Endgame KRN-KR} Kg5 {[%emt 0:00:48] [#]} (35... Re6 $11 36. Ra6 Kf5) 36. b6 {[%emt 0:03:23]} (36. c5 $1 $16 {[%cal Rc5c6] Threatens to win with c6.} Rb8 37. b4) 36... Ne6 $1 $11 {[%emt 0:06:19]} 37. b4 {[%emt 0:00:48] Strongly threatening c5.} f5 $2 {[%emt 0:00:53][%mdl 8192] [#]} (37... Rg8 $11) 38. Rxe6 $1 $18 {[%emt 0:07:25][%mdl 576] Promotion. White is clearly winning.} Rxe6 {[%emt 0:00:24]} (38... Rb8 39. c5) 39. c5 {[%emt 0:00:10]} e4 {[%emt 0:00:48]} 40. b7 {[%emt 0:01:01]} f4 {[%emt 0:01:44]} 41. b8=Q {[%emt 0:30:37][%cal Oc5c6] Intending c6! and mate.} e3 {[%emt 0:30:06]} 42. fxe3 {[%emt 0:00:22] Weighted Error Value: White=0.30/Black=0.28 (precise)} 1-0

[Event "24th Hoogeschool Zeeland 2022"]
[Site "Vlissingen"]
[Date "2022.08.10"]
[Round "6.13"]
[White "Koffeman, Timo"]
[Black "Dhulipalla Bala Chandra Prasad"]
[Result "0-1"]
[ECO "C55"]
[WhiteElo "2119"]
[BlackElo "2423"]
[Annotator "TA"]
[PlyCount "102"]
[EventDate "2022.08.05"]
[EventType "swiss"]
[EventCountry "NED"]
[SourceTitle "playchess.com"]
[Source "ChessBase"]
[SourceQuality "1"]
[TimeControl "40/5400+30:1800+30"]

{[%evp 15,102,22,50,-10,0,0,-16,-50,-42,-46,-43,-54,-60,-85,-82,-72,-80,-77,-47,-73,-69,-75,-67,-91,-43,-56,-43,-41,-39,-74,-40,-47,-49,-60,-42,-42,-33,-54,-35,-41,0,-52,-32,-51,-38,-36,-38,-55,-57,-52,-49,-60,-56,-60,-70,-55,-40,-63,-43,-95,-75,-102,-97,-109,-106,-125,-125,-125,-125,-125,-125,-125,-125,-125,-122,-122,-122,-122,-122,-122,-122,-2229,-1977,-1713,-1622,-29972,-29968,-29970,-29960]} 1. e4 {[%emt 0:00:04]} e5 {[%emt 0:02:27]} 2. Nf3 {[%emt 0:00:08]} Nc6 {[%emt 0:00:03]} 3. Bc4 {[%emt 0:00:09]} Nf6 {[%emt 0:00:05]} 4. d3 {[%emt 0:00:08]} h6 {[%emt 0:00:05]} 5. Nbd2 {[%emt 0:15:16]} d6 {[%emt 0:00:39]} 6. c3 {[%emt 0:03:56]} g6 {[%emt 0:00:06]} 7. O-O {[%emt 0:03:37]} Bg7 {[%emt 0:00:04]} 8. Re1 {[%emt 0:02:59]} O-O {[%emt 0:00:56]} 9. d4 {[%emt 0:02:26] C55: Two Knights: 4 d3, 4 d4 exd4 5 e5 and Max Lange Attack.} (9. b4 $14) 9... exd4 $11 {[%emt 0:05:26]} 10. cxd4 {[%emt 0:01:13]} d5 {[%emt 0:00:10] [#]} 11. Bb5 $146 {[%emt 0:05:20] The position is equal.} (11. exd5 {seems wilder.} Nxd5 12. Ne4 Nb6 13. Bb3) ({Predecessor:} 11. exd5 Nxd5 12. Nb3 Bg4 13. Be3 a5 14. Rc1 Qd6 15. h3 Bxf3 16. Qxf3 Nxe3 17. fxe3 {1-0 (46) Mamedov,R (2654)-Romanov,E (2594) Reykjavik 2021}) 11... dxe4 {[%emt 0:07:11]} 12. Nxe4 {[%emt 0:04:32]} Nxe4 {[%emt 0:00:22]} 13. Rxe4 {[%emt 0:05:29]} Qd5 {[%emt 0:03:13][%csl LRb5,LRe4]} 14. Qe2 {[%emt 0:09:07]} Bf5 {[%emt 0:09:02]} 15. Bxc6 {[%emt 0:03:53]} Qxc6 {[%emt 0:00:21]} 16. Re3 {[%emt 0:03:22]} Rfe8 {[%emt 0:12:41]} 17. Bd2 {[%emt 0:01:55]} Rxe3 {[%emt 0:04:47]} 18. Qxe3 {[%emt 0:03:47]} Re8 {[%emt 0:03:38]} 19. Qc3 {[%emt 0:05:29]} Qb6 {[%emt 0:02:14] Black is more active.} (19... Qd7 $17) 20. Be3 $15 {[%emt 0:01:12]} Be4 {[%emt 0:07:36]} 21. Ne5 {[%emt 0:01:43]} Bd5 {[%emt 0:01:27]} 22. b4 {[%emt 0:03:59]} c6 {[%emt 0:04:56]} 23. a3 {[%emt 0:03:00]} Qd8 {[%emt 0:02:36]} 24. h3 {[%emt 0:02:59]} Qh4 {[%emt 0:03:55]} 25. Re1 {[%emt 0:07:04]} a6 {[%emt 0:04:54]} 26. Qa1 {[%emt 0:04:36]} Kh7 {[%emt 0:02:00]} 27. Qc3 {[%emt 0:00:11]} Kg8 {[%emt 0:08:05]} 28. Qa1 {[%emt 0:00:48]} Qh5 {[%emt 0:00:44]} 29. Bd2 {[%emt 0:02:25]} Kh7 {[%emt 0:03:35]} 30. Qc3 {[%emt 0:02:59]} Qf5 {[%emt 0:00:30]} 31. Re3 {[%emt 0:01:16]} h5 {[%emt 0:02:38]} 32. Re1 {[%emt 0:00:28]} Kg8 $40 {[%emt 0:00:40][%mdl 128] Black has some attack.} 33. Bc1 {[%emt 0:00:51]} f6 {[%emt 0:02:28]} 34. Nd3 {[%emt 0:00:27]} Rxe1+ {[%emt 0:00:06]} 35. Nxe1 {[%emt 0:00:09]} Qe4 {[%emt 0:00:02]} 36. Qe3 {[%emt 0:00:32]} f5 {[%emt 0:00:32]} 37. Qxe4 {[%emt 0:00:42]} ({White should play} 37. Nf3 $15) 37... Bxe4 {[%emt 0:00:03][%mdl 4096] Endgame KBB-KBN. This bishop pair is nice.} 38. Bb2 {[%emt 0:00:45]} Kf7 {[%emt 0:06:59]} 39. Kf1 {[%emt 0:00:32]} Bf6 {[%emt 0:01:59]} 40. Ke2 {[%emt 0:00:24]} Ke6 {[%emt 0:00:07]} 41. f3 {[%emt 0:04:34]} Bb1 {[%emt 0:00:28]} 42. Nd3 {[%emt 0:01:28]} Bxd3+ {[%emt 0:04:14]} 43. Kxd3 $17 {[%emt 0:00:06] KB-KB} Kd5 {[%emt 0:00:30]} 44. Bc3 {[%emt 0:01:41]} b6 {[%emt 0:01:41]} 45. g4 {[%emt 0:03:07]} Bg7 {[%emt 0:09:39]} 46. gxh5 {[%emt 0:02:49]} gxh5 {[%emt 0:00:13]} 47. a4 {[%emt 0:01:42]} Bf6 {[%emt 0:02:15]} 48. b5 $2 {[%emt 0:14:01][%mdl 8192] [#] This move loses the game for White.} (48. Bb2 $17) 48... axb5 $19 {[%emt 0:01:53]} 49. axb5 {[%emt 0:00:20]} c5 {[%emt 0:00:41][%cal Rf6d4]} 50. dxc5 {[%emt 0:01:10]} Bxc3 {[%emt 0:00:13]} 51. Kxc3 {[%emt 0:00:11]} Kxc5 {[%emt 0:00:05] Weighted Error Value: White=0.50/Black=0.08 (flawless)} 0-1

[Event "24th Hoogeschool Zeeland 2022"]
[Site "Vlissingen"]
[Date "2022.08.10"]
[Round "6.14"]
[White "Lohr, Maximilian"]
[Black "Seul, Georg"]
[Result "1-0"]
[ECO "D00"]
[WhiteElo "2092"]
[BlackElo "2367"]
[Annotator "TA"]
[PlyCount "85"]
[EventDate "2022.08.05"]
[EventType "swiss"]
[EventCountry "NED"]
[SourceTitle "playchess.com"]
[Source "ChessBase"]
[SourceQuality "1"]
[TimeControl "40/5400+30:1800+30"]

{[%evp 9,85,-9,23,6,17,-12,68,77,55,56,78,81,72,50,20,20,73,17,76,74,91,18,18,7,20,20,40,-4,73,63,219,195,516,308,308,89,61,68,84,57,165,175,193,-292,-294,-298,-283,-282,-301,-434,0,0,0,0,225,203,186,74,80,0,0,0,0,0,0,0,139,127,579,499,823,792,897,880,856,852,1669,1556]} 1. d4 {[%emt 0:12:19]} Nf6 {[%emt 0:00:13]} 2. Nc3 {[%emt 0:00:09]} d5 {[%emt 0:00:50]} 3. Bf4 {[%emt 0:00:10]} a6 {[%emt 0:00:48]} 4. e3 {[%emt 0:04:08]} e6 {[%emt 0:00:38]} 5. g4 {[%emt 0:02:16][%cal Bg2g4,Bg4g5][%mdl 32]} c5 {[%emt 0:30:41]} 6. g5 $1 {[%emt 0:01:45] D00: 1 d4 d5: Unusual lines.} Nfd7 {[%emt 0:00:53]} 7. Qf3 {[%emt 0:07:42] [#]} Be7 $146 {[%emt 0:04:26]} ({Black should try} 7... Nc6 $11) ({Predecessor:} 7... cxd4 8. exd4 Nc6 9. O-O-O b5 10. h4 g6 11. h5 Rg8 12. hxg6 hxg6 13. Rh7 Bg7 14. Nxd5 exd5 15. Qxd5 {1-0 (68) Cabarkapa,N (2449)-Reich,T (2376) Germany 2019}) 8. Qg3 $1 $14 {[%emt 0:01:46] Bc7 is the strong threat. White is slightly better.} O-O {[%emt 0:14:13]} 9. Nf3 {[%emt 0:02:24]} Nc6 {[%emt 0:00:20]} 10. O-O-O {[%emt 0:01:53]} b5 {[%emt 0:02:05]} 11. Bc7 {[%emt 0:02:23]} Qe8 {[%emt 0:00:04]} 12. h4 {[%emt 0:00:52]} f5 {[%emt 0:14:08]} (12... b4 $11 13. Na4 c4) 13. Ne2 {[%emt 0:07:43]} (13. h5 $16) 13... c4 {[%emt 0:02:22]} (13... Ra7 $1 $11) 14. Nf4 $16 {[%emt 0:06:52]} Nd8 {[%emt 0:00:23]} 15. h5 {[%emt 0:03:11] White is much more active. The black rooks are badly placed.} (15. g6 $1 $16 {[%cal Rg6h7] Black must now prevent gxh7+.} h6 16. Nh5) 15... Ra7 $11 {[%emt 0:00:21]} 16. Ne2 $36 {[%emt 0:12:56][%mdl 2048] Black is under pressure.} Nc6 {[%emt 0:00:42]} 17. Bg2 {[%emt 0:01:30]} a5 {[%emt 0:01:50]} 18. Nh4 {[%emt 0:01:09][%cal Oe2f4] [#] And now Nf4! would win.} a4 {[%emt 0:08:49]} (18... Qxh5 19. g6 h6 20. Nf4 $16) (18... Bxg5 $1 $11 19. Nc3 (19. Qxg5 Rxc7 20. Nc3 Qe7 $15) 19... b4 20. Nxd5 (20. Qxg5 bxc3 21. h6 cxb2+ 22. Kxb2 Rf7 $17) 20... Nf6 21. Nxf6+ (21. Qxg5 Nxd5 22. Bd6 Qd8 $14) 21... Bxf6) 19. Nf4 $16 {[%emt 0:01:06]} Rxc7 $2 {[%emt 0:04:13]} ({Black should play} 19... a3 $14) 20. Nxe6 $18 {[%emt 0:00:19][%mdl 64] Discovered Attack, Double Attack} Ra7 {[%emt 0:04:32]} (20... Nb6 {is tougher.}) 21. Bxd5 {[%emt 0:00:29]} Nb6 {[%emt 0:00:07] [#]} 22. Nc7+ {[%emt 0:02:27]} (22. Nxg7+ $1 $18 {[%mdl 512] is the precise move to win.} Kxg7 23. h6+ Kh8 24. g6) 22... Nxd5 $16 {[%emt 0:00:06]} 23. Nxe8 {[%emt 0:00:09]} Rxe8 {[%emt 0:00:13]} 24. Qf3 {[%emt 0:02:15]} Rd8 {[%emt 0:04:02]} (24... Be6 $14) 25. Nxf5 $18 {[%emt 0:01:25]} Bxg5 {[%emt 0:00:07] Strongly threatening ...Rf7.} 26. Qg2 $4 {[%emt 0:04:00][%mdl 8192]} (26. Rdg1 $18 {avoids the disaster.} Bf6 27. a3) 26... h6 $19 {[%emt 0:02:11]} 27. f4 {[%emt 0:00:37]} Bxf4 {[%emt 0:00:03]} 28. exf4 {[%emt 0:00:21]} Bxf5 {[%emt 0:00:04]} 29. Rhe1 {[%emt 0:00:55]} (29. a3 {was the only defense.} b4 30. Rhe1) 29... a3 $2 {[%emt 0:01:04]} (29... Ncb4 $19 30. Re5 Bxc2) 30. Re8+ $1 $11 {[%emt 0:00:45]} Rxe8 {[%emt 0:00:05]} 31. Qxd5+ {[%emt 0:00:03]} Kh8 $2 {[%emt 0:00:42]} (31... Rf7 $11 {and Black is okay.} 32. Qxc6 Re2 33. bxa3 Rxc2+ 34. Kb1 Rd2+ 35. Kc1 Rc2+ 36. Kb1 Rd2+ 37. Kc1 Rc2+) 32. Qxf5 $18 {[%emt 0:01:04]} axb2+ {[%emt 0:00:05]} 33. Kxb2 {[%emt 0:00:10]} (33. Kb1 $1 $18) 33... Rea8 $16 {[%emt 0:00:55] [#] Threatens to win with ...b4.} 34. Ra1 {[%emt 0:01:17]} ({Reject} 34. Qxb5 Rb8 35. Qxb8+ Nxb8 $15) (34. Kc3 $1 $16 Rxa2 35. Qxb5 R8a3+ 36. Kd2 (36. Kxc4 $2 Rxc2+ 37. Kd5 Ra5 $19) 36... Nxd4 37. Qe8+ (37. Qxc4 Rxc2+ 38. Qxc2 Nxc2 $15) 37... Kh7 38. Qe4+ Kg8 39. Qd5+ (39. Qxd4 Rd3+ 40. Qxd3 cxd3 $16) 39... Kh7 40. Qxd4 (40. Qe4+ Kg8 $16) 40... Rd3+ {[#]} 41. Qxd3+ $1 cxd3 42. Kxd3) 34... b4 $11 {[%emt 0:01:34] aiming for ...c3+.} ({Don't take} 34... Nxd4 35. Qc5 c3+ 36. Qxc3 $16 (36. Kxc3 Ra4 $14)) 35. Qc5 {[%emt 0:06:08]} c3+ {[%emt 0:02:43]} 36. Kb3 {[%emt 0:00:11]} Rc7 {[%emt 0:00:14]} 37. Qd6 {[%emt 0:05:21]} Na5+ {[%emt 0:00:35]} (37... Rcc8 $11 {remains equal.}) 38. Kxb4 $16 {[%emt 0:00:17]} Rc6 {[%emt 0:01:26][%mdl 8192]} (38... Rcc8 $16) 39. Qd5 {[%emt 0:00:09] White is clearly winning.} Rb6+ {[%emt 0:00:28]} (39... Rcc8 $142 40. Qxa5 Rxa5) 40. Kxc3 $18 {[%emt 0:00:15]} Rc8+ {[%emt 0:00:05]} 41. Kd3 {[%emt 0:30:11]} Nc6 {[%emt 0:03:07]} 42. c3 {[%emt 0:00:00]} Nd8 {[%emt 0:02:53]} 43. Re1 {[%emt 0:00:00] Weighted Error Value: White=0.57/Black=0.81} 1-0

[Event "24th Hoogeschool Zeeland 2022"]
[Site "Vlissingen"]
[Date "2022.08.10"]
[Round "6.15"]
[White "Sorbe, Stephane"]
[Black "Zwirs, Jasper"]
[Result "1-0"]
[ECO "C00"]
[WhiteElo "2352"]
[BlackElo "2105"]
[Annotator "TA"]
[PlyCount "87"]
[EventDate "2022.08.05"]
[EventType "swiss"]
[EventCountry "NED"]
[SourceTitle "playchess.com"]
[Source "ChessBase"]
[SourceQuality "1"]
[TimeControl "40/5400+30:1800+30"]

{[%evp 21,87,5,8,7,55,58,89,64,88,78,284,278,282,289,274,282,294,294,290,280,297,281,285,270,271,267,305,289,313,316,337,338,331,335,321,316,332,325,326,327,331,312,366,335,433,408,407,413,465,466,460,447,465,465,465,465,465,465,489,481,504,489,497,491,485,493,606,593]} 1. Nf3 {[%emt 0:01:03]} Nf6 {[%emt 0:00:17]} 2. g3 {[%emt 0:00:15]} d5 {[%emt 0:00:13]} 3. Bg2 {[%emt 0:00:08]} e6 {[%emt 0:02:25]} 4. O-O {[%emt 0:00:32]} Be7 {[%emt 0:00:40]} 5. d3 {[%emt 0:00:42]} O-O {[%emt 0:00:22]} 6. Nbd2 {[%emt 0:00:24]} c5 {[%emt 0:03:00]} 7. e4 {[%emt 0:01:11]} Nc6 {[%emt 0:01:16]} 8. Re1 {[%emt 0:00:37]} dxe4 {[%emt 0:04:12]} 9. dxe4 {[%emt 0:00:42]} e5 {[%emt 0:10:56]} 10. c3 {[%emt 0:00:55]} h6 {[%emt 0:08:33]} 11. Qe2 {[%emt 0:02:25]} Qc7 {[%emt 0:03:03]} 12. Nc4 {[%emt 0:03:07][%cal Bd2c4,Bc4e3,Be3d5][%mdl 32] [#] C00: French: Unusual White 2nd moves.} b5 $146 {[%emt 0:11:46]} (12... Rd8 $11 {is more appropriate.}) ({Predecessor:} 12... Be6 13. Nh4 Rfd8 14. f4 exf4 15. Bxf4 Qc8 16. Nf5 Bxf5 17. exf5 Nd5 18. Bxd5 Rxd5 19. Ne3 Rd8 {½-½ (30) Svidler,P (2734)-Golubov,S (2405) Sochi 2015}) 13. Ne3 $14 {[%emt 0:01:50]} Qb7 {[%emt 0:07:33]} (13... Nxe4 $2 14. Nd5 Qd8 15. Nxe7+ Qxe7 16. Qxe4 $18) 14. Nd5 {[%emt 0:10:33] White is better.} Re8 {[%emt 0:09:15]} 15. a4 {[%emt 0:03:35] White is more active.} Rb8 $2 {[%emt 0:16:33] [#]} (15... b4 $16) 16. axb5 $18 {[%emt 0:02:54]} Qxb5 {[%emt 0:00:34]} 17. Qxb5 {[%emt 0:00:36]} Rxb5 {[%emt 0:00:02]} 18. Nc7 {[%emt 0:00:14][%csl LRb5,LRe8]} Rb7 {[%emt 0:00:20]} 19. Nxe8 {[%emt 0:00:09]} Nxe8 {[%emt 0:00:04]} 20. Bf1 {[%emt 0:02:58][%cal Bg2f1,Bf1a6,Ba6b5,Bb5c6,Bc6d5][%mdl 32]} Be6 {[%emt 0:02:41]} 21. Ra6 {[%emt 0:01:41]} Nb8 {[%emt 0:00:20]} 22. Ra5 {[%emt 0:03:05]} ({Less strong is} 22. Nxe5 Nxa6 23. Bxa6 Rb6 $16) 22... Nd7 {[%emt 0:00:59]} 23. Ba6 {[%emt 0:01:16]} Rc7 {[%emt 0:01:10]} 24. Bb5 {[%emt 0:01:23]} Nef6 {[%emt 0:03:57]} 25. c4 {[%emt 0:08:32]} Bd8 {[%emt 0:01:50]} 26. Bd2 {[%emt 0:03:21]} Rb7 {[%emt 0:00:58]} 27. Ra3 {[%emt 0:02:10]} Bc7 {[%emt 0:01:17]} 28. Bc3 {[%emt 0:02:07]} Bb8 {[%emt 0:01:57]} 29. Bc6 {[%emt 0:10:55]} Rb6 {[%emt 0:00:12]} 30. Bd5 {[%emt 0:00:08]} Bg4 {[%emt 0:00:22]} 31. Nd2 {[%emt 0:02:18]} Nh7 {[%emt 0:03:53]} 32. f3 {[%emt 0:00:26]} Bh5 {[%emt 0:01:29]} 33. g4 {[%emt 0:01:05][%cal Bg3g4,Bg4g5][%mdl 32]} Bg6 {[%emt 0:00:04]} 34. h4 {[%emt 0:02:41]} h5 {[%emt 0:01:25]} 35. g5 {[%emt 0:01:40] White is clearly winning.} Nhf8 {[%emt 0:00:26]} 36. Rb3 {[%emt 0:03:04]} Kh7 {[%emt 0:02:49]} 37. Ra1 {[%emt 0:01:53]} f6 {[%emt 0:00:27]} 38. Rxb6 {[%emt 0:01:29]} axb6 {[%emt 0:00:11]} 39. Kf2 {[%emt 0:03:45]} Be8 {[%emt 0:01:05]} 40. Nf1 {[%emt 0:05:44]} fxg5 {[%emt 0:01:15]} 41. hxg5 {[%emt 0:30:41]} Kg6 {[%emt 0:03:33]} 42. Bd2 {[%emt 0:00:00]} Bf7 {[%emt 0:05:34]} 43. Ng3 {[%emt 0:00:00]} Ne6 {[%emt 0:04:20]} 44. Nf5 {[%emt 0:00:00] Black got outplayed after the opening.  Weighted Error Value: White=0.04 (flawless) /Black=0.32} 1-0

[Event "24th Hoogeschool Zeeland 2022"]
[Site "Vlissingen"]
[Date "2022.08.10"]
[Round "6.16"]
[White "Coenen, Eduard"]
[Black "Klepke, Ricardo"]
[Result "0-1"]
[ECO "A47"]
[WhiteElo "2063"]
[BlackElo "2293"]
[Annotator "TA"]
[PlyCount "106"]
[EventDate "2022.08.05"]
[EventType "swiss"]
[EventCountry "NED"]
[SourceTitle "playchess.com"]
[Source "ChessBase"]
[SourceQuality "1"]
[TimeControl "40/5400+30:1800+30"]

{[%evp 10,106,0,3,1,0,16,18,12,6,20,0,0,-24,-25,-31,-59,-62,0,-88,-80,-156,-114,-112,-118,-170,-78,-145,-150,-145,-129,-198,-191,-184,-196,-204,-204,-204,-204,-204,-194,-200,-193,-214,-194,-201,-208,-200,-214,-211,-217,-205,-212,-203,-210,-220,-220,-224,-221,-224,-225,-239,-216,-235,-223,-247,-251,-451,-448,-550,-528,-569,-569,-571,-566,-573,-566,-579,-576,-573,-575,-567,-543,-566,-547,-684,-666,-737,-658,-678,-598,-1279,-1337,-1456,-1445,-29974,-29975,-5306,-1075]} 1. d4 {[%emt 0:00:24]} c5 {[%emt 0:03:36]} 2. c3 {[%emt 0:00:59]} Nf6 {[%emt 0:02:03]} 3. Nf3 {[%emt 0:02:05]} e6 {[%emt 0:04:16]} 4. Bf4 {[%emt 0:02:13]} b6 {[%emt 0:02:25]} 5. e3 {[%emt 0:01:13]} Be7 {[%emt 0:01:58]} 6. Nbd2 {[%emt 0:01:05]} O-O {[%emt 0:02:24] A47: 1 d4 Nf6 2 Nf3 b6: Torre, London and Colle Systems.} 7. Bd3 {[%emt 0:05:41]} d5 {[%emt 0:03:26]} 8. Ne5 {[%emt 0:01:54]} Ba6 {[%emt 0:10:22] The position is equal.} 9. Bc2 {[%emt 0:03:14]} Qc8 {[%emt 0:03:16] [#]} 10. Bg5 $146 {[%emt 0:09:29]} ({Predecessor:} 10. Qf3 Nc6 11. Rc1 cxd4 12. exd4 Nxe5 13. dxe5 Nd7 14. c4 dxc4 15. O-O Rd8 16. Bb1 {0-1 (35) Skoberne,J (2572)-Volokitin,A (2624) Bled 2016}) 10... Nc6 {[%emt 0:03:38]} 11. Nxc6 {[%emt 0:09:47]} Qxc6 {[%emt 0:00:10]} 12. Qf3 {[%emt 0:05:30]} Rfe8 {[%emt 0:09:47]} 13. h4 {[%emt 0:10:03]} b5 {[%emt 0:02:59]} ({Black should play} 13... Rac8 $15) 14. h5 {[%emt 0:14:32]} (14. Rc1 $11 {remains equal.}) 14... h6 {[%emt 0:02:43]} 15. Bf4 {[%emt 0:02:45]} (15. Bxh6 $142 gxh6 16. Qf4) 15... cxd4 {[%emt 0:05:02]} 16. exd4 {[%emt 0:00:37]} b4 {[%emt 0:00:39]} 17. Rh3 {[%emt 0:01:56]} (17. c4 $17) 17... Rec8 {[%emt 0:06:50]} (17... bxc3 $19 {has better winning chances.} 18. bxc3 Bd6) 18. g4 {[%emt 0:07:27]} (18. Rg3 $142 Kf8 19. a3 bxc3 20. bxc3) 18... bxc3 {[%emt 0:12:48]} 19. bxc3 {[%emt 0:00:07]} Bb4 {[%emt 0:06:52]} 20. Rc1 {[%emt 0:04:32]} (20. cxb4 $17 Qxc2 21. Qb3) 20... Qxc3 {[%emt 0:02:21]} 21. Qxc3 {[%emt 0:06:54]} Rxc3 {[%emt 0:00:48]} 22. Rxc3 {[%emt 0:00:21]} Bxc3 {[%emt 0:00:06]} 23. Bh7+ {[%emt 0:02:48]} Kxh7 {[%emt 0:00:17]} 24. Rxc3 {[%emt 0:00:02]} Nxg4 {[%emt 0:00:23]} 25. Rc7 {[%emt 0:00:21]} Kg8 {[%emt 0:00:15]} 26. Bd6 {[%emt 0:01:55]} Rc8 {[%emt 0:01:37]} 27. f3 {[%emt 0:00:02]} Rxc7 {[%emt 0:01:06]} 28. Bxc7 $19 {[%emt 0:00:02][%mdl 4096] Endgame KBN-KBN} Ne3 {[%emt 0:01:17]} 29. Bb8 {[%emt 0:00:54]} Nc2+ {[%emt 0:00:15]} 30. Kf2 {[%emt 0:00:05]} Nb4 {[%emt 0:01:29]} 31. Bxa7 {[%emt 0:00:29]} Nxa2 {[%emt 0:00:09]} 32. Ke3 {[%emt 0:00:37]} Nb4 {[%emt 0:00:38]} 33. Nb3 {[%emt 0:00:28]} Nc6 {[%emt 0:02:16]} 34. Bb6 {[%emt 0:01:06]} Ne7 {[%emt 0:00:29]} 35. Nc5 {[%emt 0:01:14]} Nf5+ {[%emt 0:00:39]} 36. Kf4 {[%emt 0:00:05]} Bb5 {[%emt 0:00:38]} 37. Nb7 {[%emt 0:01:13]} Be2 {[%emt 0:01:29]} 38. Bc5 $2 {[%emt 0:00:29] [#]} (38. Nc5) 38... Nh4 {[%emt 0:01:59]} 39. Be7 {[%emt 0:00:33]} Nxf3 {[%emt 0:00:52]} 40. Ke3 {[%emt 0:00:44]} Bd1 {[%emt 0:00:06]} 41. Nc5 {[%emt 0:30:28]} Ng5 {[%emt 0:30:51]} 42. Kf4 {[%emt 0:00:17]} f6 {[%emt 0:00:40]} 43. Nd7 {[%emt 0:02:13]} Kf7 {[%emt 0:00:29]} 44. Bb4 {[%emt 0:00:14]} Bxh5 {[%emt 0:00:14]} 45. Nc5 {[%emt 0:02:22]} Be2 {[%emt 0:00:26]} 46. Nb7 {[%emt 0:00:12]} h5 {[%emt 0:01:57]} 47. Nd8+ {[%emt 0:00:31]} Kg6 {[%emt 0:01:10]} 48. Nc6 {[%emt 0:00:05]} Bg4 {[%emt 0:01:33] [#] Threatens to win with ...Ne4.} 49. Kg3 {[%emt 0:00:29]} Ne4+ {[%emt 0:00:32]} 50. Kh2 {[%emt 0:00:29]} Kf5 {[%emt 0:01:27]} 51. Ba3 {[%emt 0:00:45]} Kf4 {[%emt 0:00:00]} 52. Bc1+ {[%emt 0:00:00]} Kf3 {[%emt 0:00:00]} 53. Nb4 {[%emt 0:00:00]} Ke2 {[%emt 0:00:00] Weighted Error Value: White=0.27 (precise) /Black=0.08 (flawless)} 0-1